[Event "2. Itzehoer Schach Open"]
[Site "Itzehoe, Germany"]
[Date "2023.05.01"]
[Round "5.45"]
[White "Prigandt, Junis"]
[Black "Beth, Felix"]
[Result "1-0"]
[TimeControl "90 min für 40 Züge, Rest 30 min + 30 Sek pro Zug"]
[WhiteElo "995"]
[BlackElo "1498"]

1. e4 {[%clk 01:30:59]} Nc6 {[%clk 01:30:59]} {[%emt 00:00:02]} 2. d4 {[%clk
01:31:20]} {[%emt 00:00:09]} e6 {[%clk 01:31:26]} {[%emt 00:00:03]} 3. Nc3
{[%clk 01:31:41]} {[%emt 00:00:10]} b6 {[%clk 01:31:50]} {[%emt 00:00:05]} 4.
Bb5 {[%clk 01:31:59]} {[%emt 00:00:11]} Bb7 {[%clk 01:32:13]} {[%emt 00:00:08]}
5. Nf3 {[%clk 01:32:17]} {[%emt 00:00:11]} Bb4 {[%clk 01:32:38]} {[%emt
00:00:05]} 6. Bg5 {[%clk 01:32:34]} {[%emt 00:00:14]} Bxc3+ {[%clk 01:32:45]}
{[%emt 00:00:23]} 7. bxc3 {[%clk 01:32:53]} {[%emt 00:00:10]} f6 {[%clk
01:33:03]} {[%emt 00:00:12]} 8. Bf4 {[%clk 01:33:04]} {[%emt 00:00:20]} Nge7
{[%clk 01:33:13]} {[%emt 00:00:19]} 9. Bxc6 {[%clk 01:33:25]} {[%emt 00:00:09]}
Bxc6 {[%clk 01:33:38]} {[%emt 00:00:05]} 10. e5 {[%clk 01:33:41]} {[%emt
00:00:14]} f5 {[%clk 01:33:09]} {[%emt 00:00:59]} 11. Bg5 {[%clk 01:33:51]}
{[%emt 00:00:21]} h6 {[%clk 01:33:34]} {[%emt 00:00:05]} 12. Bxe7 {[%clk
01:34:09]} {[%emt 00:00:12]} Qxe7 {[%clk 01:33:59]} {[%emt 00:00:04]} 13. O-O
{[%clk 01:34:25]} {[%emt 00:00:15]} g5 {[%clk 01:33:47]} {[%emt 00:00:42]} 14.
c4 {[%clk 01:34:22]} {[%emt 00:00:33]} g4 {[%clk 01:33:45]} {[%emt 00:00:32]}
15. Ne1 {[%clk 01:34:21]} {[%emt 00:00:29]} d5 {[%clk 01:33:23]} {[%emt
00:00:53]} 16. cxd5 {[%clk 01:34:23]} {[%emt 00:00:29]} Bb5 {[%clk 01:33:49]}
{[%emt 00:00:04]} 17. Nd3 {[%clk 01:34:16]} {[%emt 00:00:33]} O-O-O {[%clk
01:33:42]} {[%emt 00:00:40]} 18. dxe6 {[%clk 01:34:13]} {[%emt 00:00:33]} Rxd4
{[%clk 01:34:08]} {[%emt 00:00:05]} 19. Rb1 {[%clk 01:34:00]} {[%emt 00:00:43]}
Ba6 {[%clk 01:34:12]} {[%emt 00:00:25]} 20. Re1 {[%clk 01:33:52]} {[%emt
00:00:38]} Qxe6 {[%clk 01:34:36]} {[%emt 00:00:07]} 21. Re3 {[%clk 01:33:54]}
{[%emt 00:00:27]} Rhd8 {[%clk 01:34:41]} {[%emt 00:00:25]} 22. Qe2 {[%clk
01:33:36]} {[%emt 00:00:49]} Qxa2 {[%clk 01:34:37]} {[%emt 00:00:33]} 23. Rd1
{[%clk 01:33:21]} {[%emt 00:00:44]} f4 {[%clk 01:32:59]} {[%emt 00:02:09]} 24.
Re4 {[%clk 01:31:04]} {[%emt 00:02:48]} f3 {[%clk 01:33:13]} {[%emt 00:00:17]}
25. gxf3 {[%clk 01:31:02]} {[%emt 00:00:31]} gxf3 {[%clk 01:33:37]} {[%emt
00:00:06]} 26. Qxf3 {[%clk 01:31:29]} {[%emt 00:00:03]} Qxc2 {[%clk 01:33:58]}
{[%emt 00:00:09]} 27. Rxd4 {[%clk 01:31:22]} {[%emt 00:00:38]} Rxd4 {[%emt
00:02:18]} 28. Qf5+ {[%clk 01:28:50]} {[%emt 00:00:50]} Kb7 {[%clk 01:34:16]}
{[%emt 00:00:36]} 29. Qf3+ {[%clk 01:27:46]} {[%emt 00:01:34]} Kc8 {[%clk
01:34:24]} {[%emt 00:00:22]} 30. e6 {[%clk 01:26:47]} {[%emt 00:01:29]} Re4
{[%clk 01:32:55]} {[%emt 00:01:59]} 31. Qf8+ {[%clk 01:22:21]} {[%emt
00:04:55]} Kb7 {[%clk 01:33:08]} {[%emt 00:00:18]} 32. Qf3 {[%clk 01:20:09]}
{[%emt 00:02:42]} Bxd3 {[%clk 01:33:08]} {[%emt 00:00:29]} 33. Rxd3 {[%clk
01:19:38]} {[%emt 00:01:01]} Qxd3 {[%clk 01:33:17]} {[%emt 00:00:20]} 34. Qxd3
{[%clk 01:19:07]} {[%emt 00:01:02]} Rxe6 {[%clk 01:33:43]} {[%emt 00:00:05]} 35.
Qd5+ {[%clk 01:19:34]} {[%emt 00:00:03]} Rc6 {[%clk 01:34:07]} {[%emt
00:00:06]} 36. f4 {[%clk 01:19:19]} {[%emt 00:00:45]} a5 {[%clk 01:34:32]}
{[%emt 00:00:05]} 37. f5 {[%clk 01:19:46]} {[%emt 00:00:03]} a4 {[%clk
01:34:59]} {[%emt 00:00:03]} 38. f6 {[%clk 01:19:38]} {[%emt 00:00:37]} a3
{[%clk 01:35:18]} {[%emt 00:00:11]} 39. f7 {[%clk 01:19:53]} {[%emt 00:00:15]}
a2 {[%clk 01:35:44]} {[%emt 00:00:04]} 40. Qxa2 {[%clk 01:20:21]} {[%emt
00:00:03]} Rg6+ {[%clk 01:35:57]} {[%emt 00:00:17]} 41. Qg2+ {[%clk 01:19:55]}
{[%emt 00:00:57]} Rxg2+ {[%clk 01:36:12]} {[%emt 00:00:14]} 42. Kxg2 {[%clk
01:20:23]} {[%emt 00:00:02]} b5 {[%clk 01:36:30]} {[%emt 00:00:13]} 43. f8=Q
{[%clk 01:20:47]} {[%emt 00:00:06]} Kb6 {[%clk 01:36:42]} {[%emt 00:00:19]} 44.
Qf6+ {[%clk 01:20:34]} {[%emt 00:00:42]} Ka5 {[%clk 01:37:07]} {[%emt
00:00:05]} 45. Qxh6 {[%clk 01:21:01]} {[%emt 00:00:02]} b4 {[%clk 01:37:29]}
{[%emt 00:00:08]} 46. Qd2 {[%clk 01:20:12]} {[%emt 00:01:19]} Ka4 {[%clk
01:37:51]} {[%emt 00:00:09]} 47. Qd7+ {[%clk 01:20:10]} {[%emt 00:00:32]} Ka3
{[%clk 01:38:09]} {[%emt 00:00:12]} 48. Qxc7 {[%clk 01:20:38]} {[%emt
00:00:02]} b3 {[%clk 01:38:31]} {[%emt 00:00:08]} 49. Qb6 {[%clk 01:20:28]}
{[%emt 00:00:40]} b2 {[%clk 01:38:51]} {[%emt 00:00:10]} 50. h4 {[%clk
01:20:43]} {[%emt 00:00:15]} 1-0

[Event "2. Itzehoer Schach Open"]
[Site "Itzehoe, Germany"]
[Date "2023.05.01"]
[Round "5.39"]
[White "Aguike, Chidera"]
[Black "Scheele, Justus"]
[Result "1-0"]
[TimeControl "90 min für 40 Züge, Rest 30 min + 30 Sek pro Zug"]
[WhiteElo "1450"]
[BlackElo "1098"]

1. e4 {[%clk 01:26:03]} {[%emt 00:04:57]} e5 {[%clk 01:30:07]} {[%emt
00:00:53]} 2. Nf3 {[%clk 01:26:19]} {[%emt 00:00:13]} Nf6 {[%clk 01:28:49]}
{[%emt 00:01:49]} 3. Nxe5 {[%clk 01:26:43]} {[%emt 00:00:06]} Nxe4 {[%clk
01:29:06]} {[%emt 00:00:13]} 4. Qe2 {[%clk 01:27:08]} {[%emt 00:00:05]} Qe7
{[%clk 01:29:04]} {[%emt 00:00:32]} 5. Qxe4 {[%clk 01:27:28]} {[%emt 00:00:10]}
f6 {[%clk 01:29:32]} {[%emt 00:00:03]} 6. d4 {[%clk 01:27:02]} {[%emt
00:00:56]} fxe5 {[%clk 01:27:59]} {[%emt 00:02:02]} 7. Qxe5 {[%clk 01:27:00]}
{[%emt 00:00:32]} Qxe5+ {[%clk 01:28:05]} {[%emt 00:00:25]} 8. dxe5 {[%clk
01:27:24]} {[%emt 00:00:05]} Nc6 {[%clk 01:28:00]} {[%emt 00:00:34]} 9. Bf4
{[%clk 01:27:17]} {[%emt 00:00:38]} b6 {[%clk 01:25:57]} {[%emt 00:02:33]} 10.
Bb5 {[%clk 01:27:06]} {[%emt 00:00:41]} Bb7 {[%clk 01:25:13]} {[%emt 00:01:14]}
11. c3 {[%clk 01:26:43]} {[%emt 00:00:53]} O-O-O {[%clk 01:23:02]} {[%emt
00:02:42]} 12. O-O {[%clk 01:25:07]} {[%emt 00:02:05]} d6 {[%clk 01:20:22]}
{[%emt 00:03:11]} 13. Bg5 {[%clk 01:23:35]} {[%emt 00:02:01]} Re8 {[%clk
01:18:04]} {[%emt 00:02:48]} 14. exd6 {[%clk 01:23:19]} {[%emt 00:00:46]} Bxd6
{[%clk 01:18:00]} {[%emt 00:00:26]} 15. Nd2 {[%clk 01:22:31]} {[%emt 00:01:26]}
Re5 {[%clk 01:15:33]} {[%emt 00:02:57]} 16. Bxc6 {[%clk 01:22:35]} {[%emt
00:00:27]} Bxc6 {[%clk 01:15:30]} {[%emt 00:00:32]} 17. Bf4 {[%clk 01:22:14]}
{[%emt 00:00:50]} Re6 {[%clk 01:15:11]} {[%emt 00:00:49]} 18. Bxd6 {[%clk
01:22:24]} {[%emt 00:00:21]} Rxd6 {[%clk 01:15:25]} {[%emt 00:00:17]} 19. Nc4
{[%clk 01:21:16]} {[%emt 00:01:37]} Rg6 {[%clk 01:13:47]} {[%emt 00:02:08]} 20.
f3 {[%clk 01:21:00]} {[%emt 00:00:46]} Re8 {[%clk 01:11:58]} {[%emt 00:02:20]}
21. a4 {[%clk 01:16:13]} {[%emt 00:05:17]} a5 {[%clk 01:05:17]} {[%emt
00:07:10]} 22. Kf2 {[%clk 01:14:53]} {[%emt 00:01:49]} Rf6 {[%clk 01:01:13]}
{[%emt 00:04:31]} 23. Ne3 {[%clk 01:11:53]} {[%emt 00:03:33]} h5 {[%clk
00:52:14]} {[%emt 00:09:30]} 24. b3 {[%clk 01:11:04]} {[%emt 00:01:19]} g5
{[%clk 00:50:11]} {[%emt 00:02:32]} 25. h3 {[%clk 01:09:52]} {[%emt 00:01:42]}
Rg8 {[%clk 00:47:28]} {[%emt 00:03:14]} 26. Kg3 {[%clk 01:08:05]} {[%emt
00:02:17]} Rf4 {[%clk 00:37:38]} {[%emt 00:10:19]} 27. Rh1 {[%clk 01:03:08]}
{[%emt 00:05:27]} Rgf8 {[%clk 00:35:42]} {[%emt 00:02:26]} 28. h4 {[%clk
01:00:53]} {[%emt 00:02:45]} Rxf3+ {[%clk 00:35:39]} {[%emt 00:00:33]} 29. gxf3
{[%clk 01:00:32]} {[%emt 00:00:51]} Rxf3+ {[%clk 00:35:57]} {[%emt 00:00:12]}
30. Kh2 {[%clk 00:57:50]} {[%emt 00:03:11]} Rxe3 {[%clk 00:35:11]} {[%emt
00:01:17]} 31. Rhe1 {[%clk 00:55:55]} {[%emt 00:02:25]} Rxc3 {[%clk 00:35:00]}
{[%emt 00:00:36]} 32. hxg5 {[%clk 00:55:47]} {[%emt 00:00:43]} Rc2+ {[%clk
00:32:23]} {[%emt 00:03:07]} 33. Kh3 {[%clk 00:54:40]} {[%emt 00:01:36]} Rc3+
{[%clk 00:24:26]} {[%emt 00:08:28]} 34. Kh4 {[%clk 00:52:55]} {[%emt 00:02:13]}
Bf3 {[%clk 00:24:07]} {[%emt 00:00:51]} 35. g6 {[%clk 00:51:32]} {[%emt
00:01:53]} Rc2 {[%clk 00:23:58]} {[%emt 00:00:38]} 36. g7 {[%clk 00:50:52]}
{[%emt 00:01:10]} Bd5 {[%clk 00:23:36]} {[%emt 00:00:51]} 37. Re8+ {[%clk
00:51:05]} {[%emt 00:00:18]} Kd7 {[%clk 00:23:29]} {[%emt 00:00:37]} 38. g8=Q
{[%clk 00:50:58]} {[%emt 00:00:38]} Bxg8 {[%clk 00:22:48]} {[%emt 00:00:11]} 39.
Rxg8 {[%clk 00:51:21]} {[%emt 00:01:06]} Rc5 {[%clk 00:20:37]} {[%emt
00:02:41]} 40. Rg5 {[%clk 00:51:14]} {[%emt 00:00:36]} Rxg5 {[%clk 00:20:29]}
{[%emt 00:00:31]} 41. Kxg5 {[%clk 00:51:43]} c5 {[%emt 00:00:47]} 42. Rd1+
{[%clk 00:51:46]} Kc6 {[%clk 00:21:04]} {[%emt 00:00:13]} 43. Kxh5 {[%clk
00:51:19]} {[%emt 00:00:58]} b5 {[%clk 00:21:27]} {[%emt 00:00:07]} 44. Kg4
{[%clk 00:51:00]} {[%emt 00:00:48]} bxa4 {[%clk 00:21:49]} {[%emt 00:00:09]} 45.
bxa4 {[%clk 00:51:23]} {[%emt 00:00:06]} c4 {[%clk 00:22:06]} {[%emt 00:00:13]}
46. Kf3 {[%clk 00:51:08]} {[%emt 00:00:44]} Kc5 {[%clk 00:22:10]} {[%emt
00:00:27]} 47. Rb1 {[%clk 00:51:27]} {[%emt 00:00:12]} Kd4 {[%clk 00:22:23]}
{[%emt 00:00:17]} 48. Ke2 {[%clk 00:51:24]} {[%emt 00:00:32]} Kc3 {[%clk
00:22:24]} {[%emt 00:00:29]} 49. Rb5 {[%clk 00:51:37]} {[%emt 00:00:16]} Kd4
{[%clk 00:22:42]} {[%emt 00:00:13]} 50. Kd2 {[%clk 00:51:48]} {[%emt 00:00:18]}
c3+ {[%clk 00:22:29]} {[%emt 00:00:43]} 51. Kc2 {[%clk 00:52:08]} {[%emt
00:00:10]} Kc4 {[%clk 00:22:48]} {[%emt 00:00:12]} 52. Rxa5 {[%clk 00:52:30]}
{[%emt 00:00:08]} Kb4 {[%clk 00:23:09]} {[%emt 00:00:09]} 53. Rb5+ {[%clk
00:52:49]} {[%emt 00:00:11]} Kc4 {[%clk 00:23:20]} {[%emt 00:00:19]} 54. Rb3
{[%clk 00:53:06]} {[%emt 00:00:12]} Kc5 {[%clk 00:23:34]} {[%emt 00:00:17]} 55.
a5 {[%clk 00:53:27]} {[%emt 00:00:09]} 1-0

[Event "2. Itzehoer Schach Open"]
[Site "Itzehoe, Germany"]
[Date "2023.05.01"]
[Round "5.46"]
[White "Marx, Jakob"]
[Black "Roebers, Bregje"]
[Result "0-1"]
[TimeControl "90 min für 40 Züge, Rest 30 min + 30 Sek pro Zug"]
[WhiteElo "1398"]
[BlackElo "1162"]

1. e4 {[%clk 01:30:58]} g6 {[%clk 01:30:55]} {[%emt 00:00:06]} 2. d4 {[%clk
01:31:23]} {[%emt 00:00:05]} Bg7 {[%clk 01:31:20]} {[%emt 00:00:06]} 3. c3
{[%clk 01:31:47]} {[%emt 00:00:07]} d6 {[%clk 01:31:42]} {[%emt 00:00:08]} 4.
Be3 {[%clk 01:32:02]} {[%emt 00:00:14]} Nf6 {[%clk 01:31:58]} {[%emt 00:00:14]}
5. Bd3 {[%clk 01:32:23]} {[%emt 00:00:09]} O-O {[%clk 01:31:37]} {[%emt
00:00:52]} 6. Nd2 {[%clk 01:32:46]} {[%emt 00:00:05]} e5 {[%clk 01:31:26]}
{[%emt 00:00:42]} 7. Ngf3 {[%clk 01:32:46]} {[%emt 00:00:29]} Re8 {[%clk
01:28:17]} {[%emt 00:03:41]} 8. h3 {[%clk 01:33:01]} {[%emt 00:00:14]} Nbd7
{[%clk 01:24:16]} {[%emt 00:04:32]} 9. Qc2 {[%clk 01:33:12]} {[%emt 00:00:18]}
b6 {[%clk 01:21:29]} {[%emt 00:03:17]} 10. O-O {[%clk 01:32:59]} {[%emt
00:00:42]} Bb7 {[%clk 01:21:24]} {[%emt 00:00:36]} 11. b4 {[%clk 01:32:36]}
{[%emt 00:00:53]} Qe7 {[%clk 01:20:42]} {[%emt 00:01:12]} 12. d5 {[%clk
01:31:13]} {[%emt 00:01:53]} a5 {[%clk 01:19:26]} {[%emt 00:01:46]} 13. Nb3
{[%clk 01:30:59]} {[%emt 00:00:43]} Ba6 {[%clk 01:14:47]} {[%emt 00:05:10]} 14.
b5 {[%clk 01:31:15]} {[%emt 00:00:14]} Bb7 {[%clk 01:14:58]} {[%emt 00:00:20]}
15. a4 {[%clk 01:31:28]} {[%emt 00:00:16]} Nc5 {[%clk 01:14:16]} {[%emt
00:01:12]} 16. Nc1 {[%clk 01:31:38]} {[%emt 00:00:19]} Nfd7 {[%clk 01:13:06]}
{[%emt 00:01:41]} 17. c4 {[%clk 01:31:32]} {[%emt 00:00:35]} Bc8 {[%clk
01:11:08]} {[%emt 00:02:29]} 18. Qb1 {[%clk 01:31:25]} {[%emt 00:00:37]} Nxd3
{[%clk 01:09:25]} {[%emt 00:02:14]} 19. Qxd3 {[%clk 01:31:42]} {[%emt
00:00:11]} Nc5 {[%clk 01:09:45]} {[%emt 00:00:11]} 20. Qc2 {[%clk 01:31:53]}
{[%emt 00:00:19]} f5 {[%clk 01:08:50]} {[%emt 00:01:24]} 21. Bxc5 {[%clk
01:31:57]} {[%emt 00:00:26]} dxc5 {[%clk 01:08:23]} {[%emt 00:00:59]} 22. Nd2
{[%clk 01:31:21]} {[%emt 00:01:05]} Bh6 {[%clk 01:07:46]} {[%emt 00:01:07]} 23.
Ncb3 {[%clk 01:31:03]} {[%emt 00:00:48]} Bg7 {[%clk 01:03:27]} {[%emt
00:04:49]} 24. g3 {[%clk 01:31:14]} {[%emt 00:00:18]} Qf7 {[%clk 01:01:49]}
{[%emt 00:02:09]} 25. Kg2 {[%clk 01:30:50]} {[%emt 00:00:54]} f4 {[%clk
01:00:20]} {[%emt 00:02:00]} 26. g4 {[%clk 01:31:12]} {[%emt 00:00:06]} Rf8
{[%clk 00:59:45]} {[%emt 00:01:06]} 27. f3 {[%clk 01:31:34]} {[%emt 00:00:08]}
Qe7 {[%clk 00:59:14]} {[%emt 00:01:01]} 28. Kf2 {[%clk 01:31:08]} {[%emt
00:00:55]} Qh4+ {[%clk 00:59:18]} {[%emt 00:00:26]} 29. Ke2 {[%clk 01:31:03]}
{[%emt 00:00:36]} Bb7 {[%clk 00:53:14]} {[%emt 00:06:34]} 30. Qd1 {[%clk
01:30:53]} {[%emt 00:00:39]} Rad8 {[%clk 00:52:36]} {[%emt 00:01:09]} 31. Rh1
{[%clk 01:30:47]} {[%emt 00:00:36]} Qe7 {[%clk 00:52:18]} {[%emt 00:00:48]} 32.
Kd3 {[%clk 01:30:26]} {[%emt 00:00:50]} c6 {[%clk 00:51:20]} {[%emt 00:01:28]}
33. Kc3 {[%clk 01:30:32]} {[%emt 00:00:24]} cxd5 {[%clk 00:51:28]} {[%emt
00:00:23]} 34. cxd5 {[%clk 01:30:53]} {[%emt 00:00:08]} c4 {[%clk 00:46:22]}
{[%emt 00:05:37]} 35. Nxc4 {[%clk 01:30:55]} {[%emt 00:00:28]} Qb4+ {[%clk
00:46:20]} {[%emt 00:00:33]} 36. Kd3 {[%clk 01:31:04]} {[%emt 00:00:19]} Bxd5
{[%clk 00:44:47]} {[%emt 00:02:05]} 37. Kc2 {[%clk 01:29:31]} {[%emt 00:02:03]}
Bxc4 {[%clk 00:44:50]} {[%emt 00:00:27]} 38. Qg1 {[%clk 01:29:10]} {[%emt
00:00:50]} Qxb3+ {[%clk 00:45:05]} {[%emt 00:00:16]} 39. Kc1 {[%clk 01:29:17]}
{[%emt 00:00:23]} Qc3+ {[%clk 00:44:39]} {[%emt 00:00:56]} 40. Kb1 {[%clk
01:29:29]} {[%emt 00:00:19]} Bd3+ {[%clk 00:44:15]} {[%emt 00:00:54]} 41. Ka2
{[%clk 01:29:45]} {[%emt 00:00:12]} Qc2+ {[%clk 00:44:08]} {[%emt 00:00:50]}
0-1

[Event "2. Itzehoer Schach Open"]
[Site "Itzehoe, Germany"]
[Date "2023.05.01"]
[Round "5.38"]
[White "Aguike, Toshiya"]
[Black "Offenbaecher, Julius"]
[Result "1-0"]
[TimeControl "90 min für 40 Züge, Rest 30 min + 30 Sek pro Zug"]
[WhiteElo "1491"]
[BlackElo "1128"]

1. e4 {[%clk 01:30:57]} {[%emt 00:00:02]} e5 {[%clk 01:24:30]} {[%emt
00:06:30]} 2. Nf3 {[%clk 01:31:20]} {[%emt 00:00:08]} Nc6 {[%clk 01:24:37]}
{[%emt 00:00:23]} 3. Bc4 {[%clk 01:31:42]} {[%emt 00:00:07]} Bc5 {[%clk
01:24:55]} {[%emt 00:00:11]} 4. c3 {[%clk 01:32:00]} {[%emt 00:00:13]} d6
{[%clk 01:24:17]} {[%emt 00:01:08]} 5. d4 {[%clk 01:32:16]} {[%emt 00:00:14]}
exd4 {[%clk 01:24:28]} {[%emt 00:00:19]} 6. cxd4 {[%clk 01:32:31]} {[%emt
00:00:15]} Bb4+ {[%clk 01:23:54]} {[%emt 00:01:03]} 7. Nc3 {[%clk 01:32:45]}
{[%emt 00:00:16]} h6 {[%clk 01:23:02]} {[%emt 00:01:22]} 8. h3 {[%clk
01:32:58]} {[%emt 00:00:17]} Nf6 {[%clk 01:23:20]} {[%emt 00:00:12]} 9. d5
{[%clk 01:30:32]} {[%emt 00:02:56]} Ne7 {[%clk 01:21:25]} {[%emt 00:02:25]} 10.
Qa4+ {[%clk 01:30:53]} {[%emt 00:00:10]} Bd7 {[%clk 01:12:25]} {[%emt
00:09:30]} 11. Qxb4 {[%clk 01:31:11]} {[%emt 00:00:11]} Rb8 {[%clk 01:09:23]}
{[%emt 00:03:32]} 12. a4 {[%clk 01:30:52]} {[%emt 00:00:49]} O-O {[%clk
01:05:12]} {[%emt 00:04:40]} 13. O-O {[%clk 01:31:03]} {[%emt 00:00:20]} a6
{[%clk 01:05:09]} {[%emt 00:00:33]} 14. Bd3 {[%clk 01:30:05]} {[%emt 00:01:27]}
Re8 {[%clk 01:03:19]} {[%emt 00:02:21]} 15. b3 {[%clk 01:28:16]} {[%emt
00:02:20]} Ng6 {[%clk 01:03:11]} {[%emt 00:00:37]} 16. Re1 {[%clk 01:25:45]}
{[%emt 00:03:01]} b5 {[%clk 01:01:49]} {[%emt 00:01:52]} 17. axb5 {[%clk
01:24:25]} {[%emt 00:01:50]} axb5 {[%clk 01:02:15]} {[%emt 00:00:05]} 18. Qd4
{[%clk 01:14:23]} {[%emt 00:10:31]} c5 {[%clk 00:56:14]} {[%emt 00:06:31]} 19.
dxc6 {[%emt 00:01:39]} Bxc6 {[%clk 00:52:32]} {[%emt 00:04:10]} 20. b4 {[%clk
01:12:18]} {[%emt 00:01:28]} d5 {[%clk 00:48:57]} {[%emt 00:04:05]} 21. e5
{[%clk 01:11:18]} {[%emt 00:01:30]} Nd7 {[%clk 00:49:05]} {[%emt 00:00:21]} 22.
e6 {[%clk 01:10:50]} {[%emt 00:00:59]} fxe6 {[%clk 00:43:33]} {[%emt 00:06:01]}
23. Bxg6 {[%clk 01:10:32]} {[%emt 00:00:49]} e5 {[%clk 00:43:38]} {[%emt
00:00:25]} 24. Qd1 {[%clk 01:10:08]} {[%emt 00:00:51]} Re6 {[%clk 00:43:32]}
{[%emt 00:00:40]} 25. Bf5 {[%clk 01:09:16]} {[%emt 00:01:21]} 1-0